fUSD/lending_fUSD_20250930
["ID","MTS","AMOUNT","RATE_DAILY","PERIOD"]
[388606600,1759250456312,470.09502259,0.00033037,60]
[388606601,1759250456347,644.01,0.00033037,60]
[388606602,1759250456386,500.0,0.00033037,60]
[388606603,1759250456420,1244.65,0.00033037,60]
[388606604,1759250456453,2018.72,0.00033037,60]
[388606605,1759250456548,500.0,0.00033037,60]
[388606606,1759250456660,644.01,0.00033037,60]
[388606607,1759250456793,1244.65,0.00033037,60]
[388606608,1759250456859,500.0,0.00033037,60]
[388606609,1759250457432,2018.72,0.00033037,60]
[388606610,1759250457466,500.0,0.00033037,60]
[388606611,1759250457502,644.01,0.00033037,60]
[388606612,1759250457535,1244.65,0.00033037,60]
[388606613,1759250457566,2018.72,0.00033037,60]
[388606614,1759250457597,500.0,0.00033037,60]
[388606615,1759250457629,1244.65,0.00033037,60]
[388606616,1759250457664,1522.28,0.00033037,60]
[388606617,1759250457695,174.16445386,0.00033037,60]
[388606618,1759250457754,644.01,0.00033037,60]
[388606619,1759250457880,2018.72,0.00033037,60]
[388606620,1759250457922,170.0,0.00033037,60]
[388606621,1759250458075,1522.28,0.00033037,60]
[388606622,1759250458117,1244.65,0.00033037,60]
[388606623,1759250458161,2018.93633626,0.00033037,60]
[388606624,1759250458202,644.01,0.00033037,60]
[388606625,1759250458247,1522.28,0.00033037,60]
[388606626,1759250458292,500.0,0.00033037,60]
[388606627,1759250458336,1244.65,0.00033037,60]
[388606628,1759250458518,644.01,0.00033037,60]
[388606629,1759250458600,1522.28,0.00033037,60]
[388606630,1759250458640,500.0,0.00033037,60]
[388606631,1759250458680,1244.65,0.00033037,60]
[388606632,1759250458751,644.01,0.00033037,60]
[388606633,1759250458791,500.0,0.00033037,60]
[388606634,1759250458831,1244.83028042,0.00033037,60]
[388606635,1759250458871,1522.28,0.00033037,60]
[388606636,1759250458909,644.01,0.00033037,60]
[388606637,1759250458949,500.0,0.00033037,60]
[388606638,1759250459075,1522.28,0.00033037,60]
[388606639,1759250459136,500.0,0.00033037,60]
[388606640,1759250459177,644.01,0.00033037,60]
[388606641,1759250459265,500.0,0.00033037,60]
[388606642,1759250459305,1522.28,0.00033037,60]
[388606643,1759250459344,335.41954383,0.00033037,60]
[388606644,1759250459382,644.01,0.00033037,60]
[388606645,1759250459481,1522.28,0.00033037,60]
[388606646,1759250459557,644.01,0.00033037,60]
[388606647,1759250459666,500.0,0.00033037,60]
[388606648,1759250459706,500.0,0.00033037,60]
[388606649,1759250459747,1522.28,0.00033037,60]
[388606650,1759250459786,644.01,0.00033037,60]
[388606651,1759250459915,500.0,0.00033037,60]
[388606652,1759250459956,500.0,0.00033037,60]
[388606653,1759250460026,1522.28,0.00033037,60]
[388606654,1759250460096,2480.54,0.00033037,60]
[388606655,1759250460167,644.01,0.00033037,60]
[388606656,1759250460212,500.0,0.00033037,60]
[388606657,1759250460253,1522.28,0.00033037,60]
[388606658,1759250460292,644.01,0.00033037,60]
[388606659,1759250460330,2480.54,0.00033037,60]
[388606660,1759250460370,1522.28,0.00033037,60]
[388606661,1759250460413,500.0,0.00033037,60]
[388606662,1759250460453,2480.54,0.00033037,60]
[388606663,1759250460499,1522.28,0.00033037,60]
[388606664,1759250460621,995.57,0.00033037,60]
[388606665,1759250460662,500.0,0.00033037,60]
[388606666,1759250460704,500.0,0.00033037,60]
[388606667,1759250461125,2480.54,0.00033037,60]
[388606668,1759250461167,500.0,0.00033037,60]
[388606669,1759250461208,995.57,0.00033037,60]
[388606670,1759250461251,2480.54,0.00033037,60]
[388606671,1759250461339,644.01035759,0.00033037,60]
[388606672,1759250461431,1522.28,0.00033037,60]
[388606673,1759250461473,995.57,0.00033037,60]
[388606674,1759250461514,2480.54,0.00033037,60]
[388606675,1759250461559,1522.28,0.00033037,60]
[388606676,1759250461600,2480.54,0.00033037,60]
[388606677,1759250461646,995.57,0.00033037,60]
[388606678,1759250461688,1522.28,0.00033037,60]
[388606679,1759250461732,2480.54,0.00033037,60]
[388606680,1759250461775,995.57,0.00033037,60]
[388606681,1759250461819,1522.28,0.00033037,60]
[388606682,1759250461862,995.57,0.00033037,60]
[388606683,1759250461905,2480.54,0.00033037,60]
[388606684,1759250461948,1522.28,0.00033037,60]
[388606685,1759250461995,995.57,0.00033037,60]
[388606686,1759250462039,2480.54,0.00033037,60]
[388606687,1759250462091,995.57,0.00033037,60]
[388606688,1759250462138,1522.28,0.00033037,60]
[388606689,1759250462180,2480.54,0.00033037,60]
[388606690,1759250462228,840.56,0.00033037,60]
[388606691,1759250462284,995.57,0.00033037,60]
[388606692,1759250463106,1522.28,0.00033037,60]
[388606693,1759250463148,2480.54,0.00033037,60]
[388606694,1759250463187,500.0,0.00033037,60]
[388606695,1759250463233,840.56,0.00033037,60]
[388606696,1759250463361,995.57,0.00033037,60]
[388606697,1759250463400,2480.54,0.00033037,60]
[388606698,1759250463441,1522.28,0.00033037,60]
[388606699,1759250463479,840.56,0.00033037,60]
[388606700,1759250463518,500.0,0.00033037,60]
[388606701,1759250463559,2480.54,0.00033037,60]
[388606702,1759250463600,1522.28,0.00033037,60]
[388606703,1759250463660,500.0,0.00033037,60]
[388606704,1759250463700,840.56,0.00033037,60]
[388606705,1759250463779,2480.54,0.00033037,60]
[388606706,1759250463843,1522.28,0.00033037,60]
[388606707,1759250463917,995.57,0.00033037,60]
[388606708,1759250464117,840.56,0.00033037,60]
[388606709,1759250464162,500.0,0.00033037,60]
[388606710,1759250464523,2480.54,0.00033037,60]
[388606711,1759250464565,1522.41,0.00033037,60]
[388606712,1759250464612,995.57,0.00033037,60]
[388606713,1759250464711,500.0,0.00033037,60]
[388606714,1759250464758,2480.54,0.00033037,60]
[388606715,1759250464797,995.57,0.00033037,60]
[388606716,1759250464836,840.56,0.00033037,60]
[388606717,1759250464909,500.0,0.00033037,60]
[388606718,1759250464978,500.0,0.00033037,60]
[388606719,1759250465040,2480.54,0.00033037,60]
[388606720,1759250465158,995.57,0.00033037,60]
[388606721,1759250465198,840.56,0.00033037,60]
[388606722,1759250465238,2665.72,0.00033037,60]
[388606723,1759250465278,500.0,0.00033037,60]
[388606724,1759250465322,179.29125493,0.00033037,60]
[388606725,1759250465360,995.57,0.00033037,60]
[388606726,1759250465399,840.56,0.00033037,60]
[388606727,1759250465437,2480.54,0.00033037,60]
[388606728,1759250465477,2665.72,0.00033037,60]
[388606729,1759250465515,500.0,0.00033037,60]
[388606730,1759250465559,995.57,0.00033037,60]
[388606731,1759250465597,840.56,0.00033037,60]
[388606732,1759250465635,2665.72,0.00033037,60]
[388606733,1759250465674,2480.54,0.00033037,60]
[388606734,1759250465713,500.0,0.00033037,60]
[388606735,1759250465787,2665.72,0.00033037,60]
[388606736,1759250465829,995.57,0.00033037,60]
[388606737,1759250465872,2480.54,0.00033037,60]
[388606738,1759250465917,2665.72,0.00033037,60]
[388606739,1759250465961,2480.54,0.00033037,60]
[388606740,1759250466008,995.57,0.00033037,60]
[388606741,1759250466067,500.0,0.00033037,60]
[388606742,1759250466110,2665.72,0.00033037,60]
[388606743,1759250466154,995.57,0.00033037,60]
[388606744,1759250466196,2480.54,0.00033037,60]
[388606745,1759250466242,500.0,0.00033037,60]
[388606746,1759250466283,2665.72,0.00033037,60]
[388606747,1759250466323,995.57,0.00033037,60]
[388606748,1759250466364,2480.61498942,0.00033037,60]
[388606749,1759250466575,2665.72,0.00033037,60]
[388606750,1759250466617,995.57,0.00033037,60]
[388606751,1759250466824,2665.72,0.00033037,60]
[388606752,1759250466869,995.57,0.00033037,60]
[388606753,1759250466943,500.0,0.00033037,60]
[388606754,1759250467048,995.57,0.00033037,60]
[388606755,1759250467103,2665.72,0.00033037,60]
[388606756,1759250467146,500.0,0.00033037,60]
[388606757,1759250467227,500.0,0.00033037,60]
[388606758,1759250467435,995.64222779,0.00033037,60]
[388606759,1759250467494,2665.72,0.00033037,60]
[388606760,1759250467536,1847.01,0.00033037,60]
[388606761,1759250467579,500.0,0.00033037,60]
[388606762,1759250467625,500.0,0.00033037,60]
[388606763,1759250467672,2665.72,0.00033037,60]
[388606764,1759250467714,1847.01,0.00033037,60]
[388606765,1759250467759,566.40700289,0.00033037,60]
[388606766,1759250467811,500.0,0.00033037,60]
[388606767,1759250467862,500.0,0.00033037,60]
[388606768,1759250467905,1715.4,0.00033037,60]
[388606769,1759250467947,500.0,0.00033037,60]
[388606770,1759250468000,2665.72,0.00033037,60]
[388606771,1759250468366,1847.01,0.00033037,60]
[388606772,1759250468413,500.0,0.00033037,60]
[388606773,1759250468458,1715.4,0.00033037,60]
[388606774,1759250468504,500.0,0.00033037,60]
[388606775,1759250468555,2665.72,0.00033037,60]
[388606776,1759250468608,1847.01,0.00033037,60]
[388606777,1759250468693,500.0,0.00033037,60]
[388606778,1759250468897,1715.4,0.00033037,60]
[388606779,1759250468949,500.0,0.00033037,60]
[388606780,1759250469008,500.0,0.00033037,60]
[388606781,1759250469121,500.0,0.00033037,60]
[388606782,1759250469209,1847.01,0.00033037,60]
[388606783,1759250469257,2665.72,0.00033037,60]
[388606784,1759250469305,643.45,0.00033037,60]
[388606785,1759250469351,1715.4,0.00033037,60]
[388606786,1759250469401,500.0,0.00033037,60]
[388606787,1759250469445,500.0,0.00033037,60]
[388606788,1759250469504,1847.01,0.00033037,60]
[388606789,1759250469556,2665.72,0.00033037,60]
[388606790,1759250469604,1715.4,0.00033037,60]
[388606791,1759250469650,437.01693127,0.00033037,60]
[388606792,1759250469698,500.0,0.00033037,60]
[388606793,1759250469761,1847.01,0.00033037,60]
[388606794,1759250469807,3820.62,0.00033037,60]
[388606795,1759250469857,2665.72,0.00033037,60]
[388606796,1759250469902,1715.4,0.00033037,60]
[388606797,1759250469948,500.0,0.00033037,60]
[388606798,1759250470103,3820.62,0.00033037,60]
[388606799,1759250470154,1847.01,0.00033037,60]
[388606800,1759250470299,2665.72,0.00033037,60]
[388606801,1759250470357,1715.4,0.00033037,60]
[388606802,1759250470416,500.0,0.00033037,60]
[388606803,1759250470475,3820.62,0.00033037,60]
[388606804,1759250470520,1847.01,0.00033037,60]
[388606805,1759250470570,1715.4,0.00033037,60]
[388606806,1759250470623,2665.72,0.00033037,60]
[388606807,1759250470672,500.0,0.00033037,60]
[388606808,1759250470723,3820.62,0.00033037,60]
[388606809,1759250470770,1847.01,0.00033037,60]
[388606810,1759250470816,1715.4,0.00033037,60]
[388606811,1759250470869,2665.72,0.00033037,60]
[388606812,1759250470927,500.0,0.00033037,60]
[388606813,1759250471010,3820.62,0.00033037,60]
[388606814,1759250471059,1847.01,0.00033037,60]
[388606815,1759250471105,500.0,0.00033037,60]
[388606816,1759250471151,1715.4,0.00033037,60]
[388606817,1759250471195,2665.72,0.00033037,60]
[388606818,1759250471279,500.0,0.00033037,60]
[388606819,1759250471363,1847.01,0.00033037,60]
[388606820,1759250471406,3820.62,0.00033037,60]
[388606821,1759250471449,500.0,0.00033037,60]
[388606822,1759250471492,840.56,0.00033037,60]
[388606823,1759250471540,1715.4,0.00033037,60]
[388606824,1759250471584,2665.72,0.00033037,60]
[388606825,1759250471627,500.0,0.00033037,60]
[388606826,1759250471671,500.0,0.00033037,60]
[388606827,1759250471726,1847.01,0.00033037,60]
[388606828,1759250471769,3820.62,0.00033037,60]
[388606829,1759250471812,500.0,0.00033037,60]
[388606830,1759250471859,1715.4,0.00033037,60]
[388606831,1759250471903,2665.72,0.00033037,60]
[388606832,1759250471944,500.0,0.00033037,60]
[388606833,1759250471987,500.0,0.00033037,60]
[388606834,1759250472033,500.0,0.00033037,60]
[388606835,1759250472084,3820.62,0.00033037,60]
[388606836,1759250472126,840.56,0.00033037,60]
[388606837,1759250472436,1847.01,0.00033037,60]
[388606838,1759250472555,1715.4,0.00033037,60]
[388606839,1759250472597,2665.88471785,0.00033037,60]
[388606840,1759250472636,500.0,0.00033037,60]
[388606841,1759250472675,500.0,0.00033037,60]
[388606842,1759250472732,500.0,0.00033037,60]
[388606843,1759250472776,3820.62,0.00033037,60]
[388606844,1759250472817,840.56,0.00033037,60]
[388606845,1759250472858,1847.01,0.00033037,60]
[388606846,1759250472897,500.0,0.00033037,60]
[388606847,1759250472936,1715.4,0.00033037,60]
[388606848,1759250472977,500.0,0.00033037,60]
[388606849,1759250473017,500.0,0.00033037,60]
[388606850,1759250473070,500.0,0.00033037,60]
[388606851,1759250473731,840.56,0.00033037,60]
[388606852,1759250473773,1847.01,0.00033037,60]
[388606853,1759250473819,500.0,0.00033037,60]
[388606854,1759250473865,1715.4,0.00033037,60]
[388606855,1759250473911,420.29090459,0.00033037,60]
[388606856,1759250473963,500.0,0.00033037,60]
[388606857,1759250474006,1847.01,0.00033037,60]
[388606858,1759250474048,500.0,0.00033037,60]
[388606859,1759250474093,3820.62,0.00033037,60]
[388606860,1759250474137,840.56,0.00033037,60]
[388606861,1759250474179,1715.4,0.00033037,60]
[388606862,1759250474222,500.0,0.00033037,60]
[388606863,1759250474267,1847.01,0.00033037,60]
[388606864,1759250474307,568.29,0.00033037,60]
[388606865,1759250474349,840.56,0.00033037,60]
[388606866,1759250474388,3820.62,0.00033037,60]
[388606867,1759250474431,1715.4,0.00033037,60]
[388606868,1759250474575,500.0,0.00033037,60]
[388606869,1759250474614,1847.01,0.00033037,60]
[388606870,1759250474653,1715.4,0.00033037,60]
[388606871,1759250474748,500.0,0.00033037,60]
[388606872,1759250474788,840.56,0.00033037,60]
[388606873,1759250474831,1847.01,0.00033037,60]
[388606874,1759250474914,3820.62,0.00033037,60]
[388606875,1759250474984,1715.4,0.00033037,60]
[388606876,1759250475145,840.56,0.00033037,60]
[388606877,1759250475187,500.0,0.00033037,60]
[388606878,1759250475228,1847.01,0.00033037,60]
[388606879,1759250475670,3820.62,0.00033037,60]
[388606880,1759250475714,1715.4,0.00033037,60]
[388606881,1759250475757,500.0,0.00033037,60]
[388606882,1759250475811,500.0,0.00033037,60]
[388606883,1759250475853,840.56,0.00033037,60]
[388606884,1759250475905,1847.01,0.00033037,60]
[388606885,1759250475947,1715.4,0.00033037,60]
[388606886,1759250475990,3820.62,0.00033037,60]
[388606887,1759250476033,500.0,0.00033037,60]
[388606888,1759250476087,500.0,0.00033037,60]
[388606889,1759250476130,840.56,0.00033037,60]
[388606890,1759250476173,417.67607152,0.00033037,60]
[388606891,1759250476215,500.0,0.00033037,60]
[388606892,1759250476263,3820.62,0.00033037,60]
[388606893,1759250476308,1847.01,0.00033037,60]
[388606894,1759250476353,1715.4,0.00033037,60]
[388606895,1759250476394,500.0,0.00033037,60]
[388606896,1759250476439,500.0,0.00033037,60]
[388606897,1759250476484,578.37287863,0.00033037,60]
[388606898,1759250476530,840.56,0.00033037,60]
[388606899,1759250476576,500.0,0.00033037,60]
[388606900,1759250476619,1847.14916193,0.00033037,60]
[388606901,1759250476662,3820.62,0.00033037,60]
[388606902,1759250476704,1715.4,0.00033037,60]
[388606903,1759250476746,500.0,0.00033037,60]
[388606904,1759250476797,840.56,0.00033037,60]
[388606905,1759250476839,88.19761212,0.00033037,60]
[388606906,1759250528685,1817.0,0.0003013,120]
[388606907,1759250529899,817.0,0.0003013,120]
[388606908,1759250531596,621.0,0.0003013,120]
[388606909,1759250592337,240.0,0.0003013,120]
[388606910,1759250673067,150.0,0.00029681,120]
[388606912,1759250852478,150.0,0.00028512,120]
[388606913,1759250903239,151.0,0.00030137,120]
[388606914,1759250911454,150.0,0.00030037,120]
[388606915,1759250968262,1000.0,0.00030137,120]
[388606916,1759251011935,151.0,0.00030137,120]
[388606917,1759251026711,577.52768292,0.00030137,120]
[388606918,1759251027831,1998.45,0.00030136,120]
[388606919,1759251033001,150.0,0.00029815,120]
[388606920,1759251033386,-600.40900771,0.00016631,2]
[388606921,1759251033398,-314.47744226,0.00016631,2]
[388606922,1759251033434,-2.75055003,0.00016631,2]
[388606923,1759251033443,-300.0,0.00016704,2]
[388606924,1759251033454,-1200.0,0.00016704,2]
[388606925,1759251033463,-200.0,0.00016705,2]
[388606926,1759251033473,-151.0,0.00016705,2]
[388606927,1759251033483,-151.0,0.00016705,2]
[388606928,1759251033492,-151.0,0.00016705,2]
[388606929,1759251033501,-151.0,0.00016705,2]
[388606930,1759251033511,-165.78343445,0.00016705,2]
[388606931,1759251033520,-151.0,0.00016705,2]
[388606932,1759251033529,-151.0,0.00016705,2]
[388606933,1759251033537,-151.0,0.00016705,2]
[388606934,1759251033546,-151.0,0.00016705,2]
[388606935,1759251033555,-151.0,0.00016705,2]
[388606936,1759251033564,-89.42606362,0.00016705,2]
[388606937,1759251033574,-61.57393638,0.00016705,2]
[388606938,1759251033583,-151.0,0.00016705,2]
[388606939,1759251033592,-99.42606362,0.00016705,2]
[388606940,1759251033603,-51.57393638,0.00016705,2]
[388606941,1759251033612,-200.0,0.00016705,2]
[388606942,1759251033626,-151.0,0.00016705,2]
[388606943,1759251033635,-151.0,0.00016705,2]
[388606944,1759251033644,-143.89086794,0.00016705,2]
[388606945,1759251033655,-56.10913206,0.00016705,2]
[388606946,1759251033664,-234.0,0.00016713,2]
[388606947,1759251033673,-550.0,0.00016713,2]
[388606948,1759251033682,-1218.83059228,0.00016714,7]
[388606961,1759251036672,-595.46155839,0.00016714,7]
[388606962,1759251036685,-404.53844161,0.00016714,7]
[388606963,1759251036696,-681.34804713,0.00016714,7]
[388606964,1759251036709,-358.30667691,0.00016714,7]
[388606965,1759251036745,-672.06598027,0.00016714,7]
[388606966,1759251036757,-531.67165279,0.00016714,7]
[388606967,1759251036769,-1248.04892158,0.00016714,7]
[388606968,1759251036786,-39118.35883424,0.00016714,7]
[388606969,1759251036796,-2978.4532,0.00016715,2]
[388606970,1759251036807,-19738.91483815,0.00016715,2]
[388606971,1759251036855,-421.82543743,0.00016715,2]
[388607056,1759251039438,-195.91102442,0.00016715,2]
[388607057,1759251039449,-1000.0,0.00016715,2]
[388607058,1759251039459,-474.52590314,0.00017,7]
[388607059,1759251039470,-200.0,0.00017253,2]
[388607060,1759251039480,-200.0,0.00017253,2]
[388607061,1759251039491,-572.56,0.00017258,2]
[388607062,1759251039502,-400.0,0.00017258,2]
[388607063,1759251039511,-4650.79,0.00017258,2]
[388607064,1759251039521,-1832.29,0.00017258,2]
[388607065,1759251039530,-2151.0,0.00017258,2]
[388607066,1759251039540,-307.74,0.00017258,2]
[388607067,1759251039551,-166.83,0.00017258,2]
[388607068,1759251039565,-200.0,0.00017258,2]
[388607069,1759251039576,-666.0,0.00017258,3]
[388607070,1759251039586,-17759.5996305,0.00017364,2]
[388607071,1759251039596,-10129.95236165,0.00017365,2]
[388607072,1759251039607,-1057.65489961,0.00017366,2]
[388607073,1759251039617,-6472.61860764,0.00017367,2]
[388607102,1759251041093,-11286.98102286,0.00017367,2]
[388607103,1759251041103,-586.26957993,0.00017371,2]
[388607104,1759251041114,-3376.65078724,0.00017376,2]
[388607105,1759251041126,-3376.65078724,0.00017386,2]
[388607106,1759251041136,-310.47024415,0.00017388,2]
[388607107,1759251041147,-10129.95236165,0.00017392,2]
[388607108,1759251041158,-222.37,0.00017394,2]
[388607109,1759251041169,-586.26957993,0.00017394,2]
[388607110,1759251041181,-1039.697174,0.00017396,2]
[388607111,1759251041192,-17759.5996305,0.00017398,2]
[388607112,1759251041206,-35448.25601045,0.00017406,2]
[388607113,1759251041216,-3376.65078724,0.0001741,2]
[388607114,1759251041227,-1057.65489961,0.00017414,2]
[388607115,1759251041239,-1057.65489961,0.00017429,2]
[388607116,1759251041250,-310.47024415,0.00017433,2]
[388607117,1759251041731,-1039.697174,0.00017433,2]
[388607118,1759251041763,-586.26957993,0.00017438,2]
[388607119,1759251041775,-10129.95236165,0.00017438,2]
[388607120,1759251041787,-10129.95236165,0.00017439,2]
[388607121,1759251041799,-3376.65078724,0.00017441,2]
[388607122,1759251041810,-1039.697174,0.00017455,2]
[388607123,1759251041821,-310.47024415,0.00017458,2]
[388607124,1759251041833,-17759.5996305,0.00017458,2]
[388607125,1759251041843,-586.26957993,0.00017461,2]
[388607126,1759251041854,-35448.25601045,0.00017468,2]
[388607127,1759251041864,-35448.25601045,0.0001747,2]
[388607128,1759251041874,-35448.25601045,0.0001747,2]
[388607129,1759251041883,-3376.65078724,0.00017475,2]
[388607130,1759251041893,-1039.697174,0.00017476,2]
[388607131,1759251041903,-1039.697174,0.0001748,2]
[388607132,1759251041912,-310.47024415,0.00017482,2]
[388607133,1759251041923,-1057.65489961,0.00017485,2]
[388607134,1759251041934,-17759.5996305,0.00017485,2]
[388607135,1759251041944,-1057.65489961,0.00017485,2]
[388607136,1759251041954,-310.47024415,0.00017487,2]
[388607137,1759251041964,-586.26957993,0.00017487,2]
[388607138,1759251041974,-35448.25601045,0.00017488,2]
[388607139,1759251041984,-10129.95236165,0.00017499,2]
[388607140,1759251041993,-11501.9,0.00017549,2]
[388607141,1759251042003,-4431.99,0.00017562,2]
[388607142,1759251042013,-150.0,0.00017583,7]
[388607143,1759251042022,-539.17,0.00017603,2]
[388607144,1759251042031,-250.0,0.00017653,2]
[388607145,1759251042040,-980.21,0.00017705,2]
[388607146,1759251042051,-8444.8,0.00017794,2]
[388607147,1759251042061,-300.0,0.00017816,2]
[388607148,1759251042072,-1000.0,0.00018051,2]
[388607149,1759251042082,-158.95,0.00018076,2]
[388607150,1759251042092,-458.84377922,0.00018153,2]
[388607151,1759251042103,-150.0,0.00018222,2]
[388607152,1759251042113,-150.0,0.00018222,2]
[388607153,1759251042123,-150.0,0.00018222,2]
[388607154,1759251042132,-150.0,0.00018222,2]
[388607155,1759251042142,-150.0,0.00018222,2]
[388607156,1759251042151,-222.37,0.00018263,2]
[388607157,1759251042160,-150.0,0.000183,2]
[388607158,1759251042168,-1680.0,0.00018341,2]
[388607159,1759251042178,-500.0,0.00018355,2]
[388607160,1759251042187,-190.20371466,0.00018385,2]
[388607161,1759251042197,-2500.0,0.00018385,2]
[388607162,1759251042210,-250.0,0.00018385,2]
[388607163,1759251042221,-202.13814267,0.00018387,2]
[388607164,1759251042230,-250.0,0.00018387,2]
[388607165,1759251042241,-8027.94,0.00018392,2]
[388607166,1759251042250,-9000.0,0.00018454,2]
[388607167,1759251042260,-8813.21594684,0.00018454,2]
[388607168,1759251042268,-151.0,0.00018454,2]
[388607169,1759251042279,-160.0,0.00018454,2]
[388607170,1759251042288,-151.0,0.00018454,2]
[388607171,1759251042297,-7965.41053268,0.00018454,2]
[388607172,1759251042308,-200.0,0.00018454,2]
[388607173,1759251042317,-200.0,0.00018454,2]
[388607174,1759251042327,-200.0,0.00018454,2]
[388607175,1759251042337,-578.20924308,0.00018454,2]
[388607176,1759251042348,-200.0,0.00018454,2]
[388607177,1759251042359,-595.01383255,0.00018454,2]
[388607178,1759251042370,-601.3376128,0.00018454,2]
[388607179,1759251042380,-500.0,0.00018454,2]
[388607180,1759251042391,-500.0,0.00018454,2]
[388607181,1759251042403,-500.0,0.00018454,2]
[388607182,1759251042414,-500.0,0.00018454,2]
[388607183,1759251042425,-500.0,0.00018454,2]
[388607184,1759251042436,-500.0,0.00018454,2]
[388607185,1759251042447,-500.0,0.00018454,2]
[388607186,1759251042457,-500.0,0.00018454,2]
[388607187,1759251042468,-370.49628111,0.00018454,2]
[388607188,1759251042478,-474.52590314,0.00018476,2]
[388607189,1759251042489,-8260.13072239,0.00018509,2]
[388607190,1759251042499,-3276.6739533,0.00018521,2]
[388607191,1759251042509,-150.99,0.00018533,2]
[388607192,1759251042519,-999.99,0.00018533,2]
[388607193,1759251042529,-8565.75555911,0.00018564,2]
[388607194,1759251042540,-150.0,0.0001861,2]
[388607195,1759251042550,-150.0,0.0001861,2]
[388607196,1759251042560,-150.0,0.0001861,2]
[388607197,1759251042571,-150.53374238,0.0001861,2]
[388607198,1759251042582,-500.0,0.0001861,2]
[388607199,1759251042592,-500.0,0.0001861,2]
[388607200,1759251042602,-494.0,0.0001861,2]
[388607201,1759251042613,-500.0,0.0001861,2]
[388607202,1759251042624,-2070.0,0.0001861,2]
[388607203,1759251042636,-500.0,0.0001861,2]
[388607204,1759251042648,-150.0,0.0001861,2]
[388607205,1759251042661,-1178.0,0.0001861,2]
[388607206,1759251042672,-500.0,0.0001861,2]
[388607207,1759251042683,-500.0,0.0001861,2]
[388607208,1759251042694,-150.0,0.0001861,2]
[388607209,1759251042704,-150.0,0.0001861,2]
[388607210,1759251042715,-150.0,0.0001861,2]
[388607211,1759251042725,-150.0,0.0001861,2]
[388607212,1759251042735,-500.0,0.0001861,2]
[388607213,1759251042746,-500.0,0.0001861,2]
[388607214,1759251042755,-150.0,0.0001861,2]
[388607215,1759251042764,-500.0,0.0001861,2]
[388607216,1759251042774,-150.0,0.0001861,2]
[388607217,1759251042784,-150.0,0.0001861,2]
[388607218,1759251042794,-500.0,0.0001861,2]
[388607219,1759251042804,-150.0,0.0001861,2]
[388607220,1759251042815,-500.0,0.0001861,2]
[388607221,1759251042825,-8882.6885148,0.00018619,2]
[388607222,1759251042836,-1745.24,0.00018621,2]
[388607224,1759251042845,-150.0,0.00018627,2]
[388607227,1759251042854,-1000.0,0.0001863,2]